Workbook

Sheet Scoresheet
A1: Competitor | G1: Rank? | H1: Promote? | I1: Sort Keys | K1: Match Totals | P1: Stage 1 | AF1: Stage 2 | AS1: Stage 3 | BE1: Stage 4 | BQ1: Stage 5 | CC1: Stage 6 | CN1: Stage 7 | CY1: Stage 8
A2: Entry # | B2: Name (Last, First) | C2: IDPA # | D2: Spl Cat | E2: Div | F2: Class | G2: n | H2: n | I2: Sort Div | J2: Sort Class | K2: Total Match Score | L2: Tot Raw Time | M2: Tot Pen Time | N2: Tot Pts Dn/2 | O2: Tot Pts Dn | P2: Str 1 Raw Time | Q2: Str 2 Raw Time | R2: Str 3 Raw Time | S2: Str 4 Raw Time | T2: Str 5 Raw Time | U2: Str 6 Raw Time | V2: Str 7 Raw Time | W2: Pts Dn | X2: PE | Y2: FTN | Z2: HNS | AA2: FTDR | AB2: Stage Raw Time | AC2: Pts Dn/2 | AD2: Pen Sec | AE2: Total Stage Score | AF2: Str 1 Raw Time | AG2: Str 2 Raw Time | AH2: Str 3 Raw Time | AI2: Str 4 Raw Time | AJ2: Pts Dn | AK2: PE | AL2: FTN | AM2: HNS | AN2: FTDR | AO2: Stage Raw Time | AP2: Pts Dn/2 | AQ2: Pen Sec | AR2: Total Stage Score | AS2: Str 1 Raw Time | AT2: Str 2 Raw Time | AU2: Str 3 Raw Time | AV2: Pts Dn | AW2: PE | AX2: FTN | AY2: HNS | AZ2: FTDR | BA2: Stage Raw Time | BB2: Pts Dn/2 | BC2: Pen Sec | BD2: Total Stage Score | BE2: Str 1 Raw Time | BF2: Str 2 Raw Time | BG2: Str 3 Raw Time | BH2: Pts Dn | BI2: PE | BJ2: FTN | BK2: HNS | BL2: FTDR | BM2: Stage Raw Time | BN2: Pts Dn/2 | BO2: Pen Sec | BP2: Total Stage Score | BQ2: Str 1 Raw Time | BR2: Str 2 Raw Time | BS2: Str 3 Raw Time | BT2: Pts Dn | BU2: PE | BV2: FTN | BW2: HNS | BX2: FTDR | BY2: Stage Raw Time | BZ2: Pts Dn/2 | CA2: Pen Sec | CB2: Total Stage Score | CC2: Str 1 Raw Time | CD2: Str 2 Raw Time | CE2: Pts Dn | CF2: PE | CG2: FTN | CH2: HNS | CI2: FTDR | CJ2: Stage Raw Time | CK2: Pts Dn/2 | CL2: Pen Sec | CM2: Total Stage Score | CN2: Str 1 Raw Time | CO2: Str 2 Raw Time | CP2: Pts Dn | CQ2: PE | CR2: FTN | CS2: HNS | CT2: FTDR | CU2: Stage Raw Time | CV2: Pts Dn/2 | CW2: Pen Sec | CX2: Total Stage Score | CY2: Str 1 Raw Time | CZ2: Str 2 Raw Time | DA2: Pts Dn | DB2: PE | DC2: FTN | DD2: HNS | DE2: FTDR | DF2: Stage Raw Time | DG2: Pts Dn/2 | DH2: Pen Sec | DI2: Total Stage Score
A3: 1 | B3: Keith Porco | E3: ESP | F3: SS | G3: =IF(AND(OR($G$2="Y",$H$2="Y"),I3<5,J3<5),IF(AND(I3=I2,J3=J2),G2+1,1),"") ->  | H3: =IF(AND($H$2="Y",J3>0,OR(AND(G3=1,G12=10),AND(G3=2,G21=20),AND(G3=3,G30=30),AND(G3=4,G39=40),AND(G3=5,G48=50),AND(G3=6,G57=60),AND(G3=7,G66=70),AND(G3=8,G75=80),AND(G3=9,G84=90),AND(G3=10,G93=100))),VLOOKUP(J3-1,SortLookup!$A$13:$B$16,2,FALSE),"") ->  | I3: =IF(ISNA(VLOOKUP(E3,SortLookup!$A$1:$B$5,2,FALSE))," ",VLOOKUP(E3,SortLookup!$A$1:$B$5,2,FALSE)) -> 1 | J3: =IF(ISNA(VLOOKUP(F3,SortLookup!$A$7:$B$11,2,FALSE))," ",VLOOKUP(F3,SortLookup!$A$7:$B$11,2,FALSE)) -> 2 | K3: =L3+M3+N3 -> 79.27 | L3: =AB3+AO3+BA3+BM3+BY3+CJ3+CU3+DF3 -> 70.27 | M3: =AD3+AQ3+BC3+BO3+CA3+CL3+CW3+DH3 -> 5 | N3: =O3/2 -> 4 | O3: =W3+AJ3+AV3+BH3+BT3+CE3+CP3+DA3 -> 8 | P3: 25.02 | W3: 0 | AB3: =P3+Q3+R3+S3+T3+U3+V3 -> 25.02 | AC3: =W3/2 -> 0 | AD3: =(X3*3)+(Y3*5)+(Z3*5)+(AA3*20) -> 0 | AE3: =AB3+AC3+AD3 -> 25.02 | AF3: 8.5 | AJ3: 1 | AO3: =AF3+AG3+AH3+AI3 -> 8.5 | AP3: =AJ3/2 -> 0.5 | AQ3: =(AK3*3)+(AL3*5)+(AM3*5)+(AN3*20) -> 0 | AR3: =AO3+AP3+AQ3 -> 9 | AS3: 19.68 | AV3: 3 | BA3: =AS3+AT3+AU3 -> 19.68 | BB3: =AV3/2 -> 1.5 | BC3: =(AW3*3)+(AX3*5)+(AY3*5)+(AZ3*20) -> 0 | BD3: =BA3+BB3+BC3 -> 21.18 | BE3: 17.07 | BH3: 4 | BK3: 1 | BM3: =BE3+BF3+BG3 -> 17.07 | BN3: =BH3/2 -> 2 | BO3: =(BI3*3)+(BJ3*5)+(BK3*5)+(BL3*20) -> 5 | BP3: =BM3+BN3+BO3 -> 24.07 | BY3: =BQ3+BR3+BS3 -> 0 | BZ3: =BT3/2 -> 0 | CA3: =(BU3*3)+(BV3*5)+(BW3*5)+(BX3*20) -> 0 | CB3: =BY3+BZ3+CA3 -> 0 | CJ3: =CC3+CD3 -> 0 | CK3: =CE3/2 -> 0 | CL3: =(CF3*3)+(CG3*5)+(CH3*5)+(CI3*20) -> 0 | CM3: =CJ3+CK3+CL3 -> 0 | CU3: =CN3+CO3 -> 0 | CV3: =CP3/2 -> 0 | CW3: =(CQ3*3)+(CR3*5)+(CS3*5)+(CT3*20) -> 0 | CX3: =CU3+CV3+CW3 -> 0 | DF3: =CY3+CZ3 -> 0 | DG3: =DA3/2 -> 0 | DH3: =(DB3*3)+(DC3*5)+(DD3*5)+(DE3*20) -> 0 | DI3: =DF3+DG3+DH3 -> 0
A4: 2 | B4: Gene Villella | E4: ESP | F4: SS | G4: =IF(AND(OR($G$2="Y",$H$2="Y"),I4<5,J4<5),IF(AND(I4=I3,J4=J3),G3+1,1),"") ->  | H4: =IF(AND($H$2="Y",J4>0,OR(AND(G4=1,G13=10),AND(G4=2,G22=20),AND(G4=3,G31=30),AND(G4=4,G40=40),AND(G4=5,G49=50),AND(G4=6,G58=60),AND(G4=7,G67=70),AND(G4=8,G76=80),AND(G4=9,G85=90),AND(G4=10,G94=100))),VLOOKUP(J4-1,SortLookup!$A$13:$B$16,2,FALSE),"") ->  | I4: =IF(ISNA(VLOOKUP(E4,SortLookup!$A$1:$B$5,2,FALSE))," ",VLOOKUP(E4,SortLookup!$A$1:$B$5,2,FALSE)) -> 1 | J4: =IF(ISNA(VLOOKUP(F4,SortLookup!$A$7:$B$11,2,FALSE))," ",VLOOKUP(F4,SortLookup!$A$7:$B$11,2,FALSE)) -> 2 | K4: 104.47 | L4: 94.47 | M4: 5 | N4: 5 | O4: 10 | P4: 29.6 | W4: 0 | AB4: 29.6 | AC4: 0 | AD4: 0 | AE4: =AB4+AC4+AD4 -> 29.6 | AF4: 7.32 | AJ4: 4 | AO4: 7.32 | AP4: 2 | AQ4: 0 | AR4: =AO4+AP4+AQ4 -> 9.32 | AS4: 28.03 | AV4: 0 | BA4: 28.03 | BB4: 0 | BC4: 0 | BD4: =BA4+BB4+BC4 -> 28.03 | BE4: 29.52 | BH4: 6 | BK4: 1 | BM4: 29.52 | BN4: 3 | BO4: 5 | BP4: =BM4+BN4+BO4 -> 37.52 | BY4: 0 | BZ4: 0 | CA4: 0 | CB4: =BY4+BZ4+CA4 -> 0 | CJ4: 0 | CK4: 0 | CL4: 0 | CM4: =CJ4+CK4+CL4 -> 0 | CU4: 0 | CV4: 0 | CW4: 0 | CX4: =CU4+CV4+CW4 -> 0 | DF4: 0 | DG4: 0 | DH4: 0 | DI4: =DF4+DG4+DH4 -> 0
A5: 3 | B5: Terry Hanes | E5: ESP | F5: SS | G5: =IF(AND(OR($G$2="Y",$H$2="Y"),I5<5,J5<5),IF(AND(I5=I4,J5=J4),G4+1,1),"") ->  | H5: =IF(AND($H$2="Y",J5>0,OR(AND(G5=1,G14=10),AND(G5=2,G23=20),AND(G5=3,G32=30),AND(G5=4,G41=40),AND(G5=5,G50=50),AND(G5=6,G59=60),AND(G5=7,G68=70),AND(G5=8,G77=80),AND(G5=9,G86=90),AND(G5=10,G95=100))),VLOOKUP(J5-1,SortLookup!$A$13:$B$16,2,FALSE),"") ->  | I5: =IF(ISNA(VLOOKUP(E5,SortLookup!$A$1:$B$5,2,FALSE))," ",VLOOKUP(E5,SortLookup!$A$1:$B$5,2,FALSE)) -> 1 | J5: =IF(ISNA(VLOOKUP(F5,SortLookup!$A$7:$B$11,2,FALSE))," ",VLOOKUP(F5,SortLookup!$A$7:$B$11,2,FALSE)) -> 2 | K5: 72.74 | L5: 68.24 | M5: 0 | N5: 4.5 | O5: 9 | P5: 20.72 | W5: 1 | AB5: 20.72 | AC5: 0.5 | AD5: 0 | AE5: 21.22 | AF5: 8.36 | AJ5: 1 | AO5: 8.36 | AP5: 0.5 | AQ5: 0 | AR5: 8.86 | AS5: 25.19 | AV5: 3 | BA5: 25.19 | BB5: 1.5 | BC5: 0 | BD5: 26.69 | BE5: 13.97 | BH5: 4 | BM5: 13.97 | BN5: 2 | BO5: 0 | BP5: 15.97 | BY5: 0 | BZ5: 0 | CA5: 0 | CB5: 0 | CJ5: 0 | CK5: 0 | CL5: 0 | CM5: 0 | CU5: 0 | CV5: 0 | CW5: 0 | CX5: 0 | DF5: 0 | DG5: 0 | DH5: 0 | DI5: 0
A6: 4 | B6: Jerry Williams | E6: ESP | F6: UN | G6: =IF(AND(OR($G$2="Y",$H$2="Y"),I6<5,J6<5),IF(AND(I6=I5,J6=J5),G5+1,1),"") ->  | H6: =IF(AND($H$2="Y",J6>0,OR(AND(G6=1,G15=10),AND(G6=2,G24=20),AND(G6=3,G33=30),AND(G6=4,G42=40),AND(G6=5,G51=50),AND(G6=6,G60=60),AND(G6=7,G69=70),AND(G6=8,G78=80),AND(G6=9,G87=90),AND(G6=10,G96=100))),VLOOKUP(J6-1,SortLookup!$A$13:$B$16,2,FALSE),"") ->  | I6: =IF(ISNA(VLOOKUP(E6,SortLookup!$A$1:$B$5,2,FALSE))," ",VLOOKUP(E6,SortLookup!$A$1:$B$5,2,FALSE)) -> 1 | J6: =IF(ISNA(VLOOKUP(F6,SortLookup!$A$7:$B$11,2,FALSE))," ",VLOOKUP(F6,SortLookup!$A$7:$B$11,2,FALSE)) ->  | K6: 120.26 | L6: 115.26 | M6: 0 | N6: 5 | O6: 10 | P6: 40.74 | W6: 1 | AB6: 40.74 | AC6: 0.5 | AD6: 0 | AE6: 41.24 | AF6: 10.44 | AJ6: 0 | AO6: 10.44 | AP6: 0 | AQ6: 0 | AR6: 10.44 | AS6: 34.03 | AV6: 1 | BA6: 34.03 | BB6: 0.5 | BC6: 0 | BD6: 34.53 | BE6: 30.05 | BH6: 8 | BM6: 30.05 | BN6: 4 | BO6: 0 | BP6: 34.05 | BY6: 0 | BZ6: 0 | CA6: 0 | CB6: 0 | CJ6: 0 | CK6: 0 | CL6: 0 | CM6: 0 | CU6: 0 | CV6: 0 | CW6: 0 | CX6: 0 | DF6: 0 | DG6: 0 | DH6: 0 | DI6: 0
A7: 5 | B7: Paul Day | E7: ESP | F7: SS | H7: =IF(AND($H$2="Y",J7>0,OR(AND(G7=1,G16=10),AND(G7=2,G25=20),AND(G7=3,G34=30),AND(G7=4,G43=40),AND(G7=5,G52=50),AND(G7=6,G61=60),AND(G7=7,G70=70),AND(G7=8,G79=80),AND(G7=9,G88=90),AND(G7=10,G97=100))),VLOOKUP(J7-1,SortLookup!$A$13:$B$16,2,FALSE),"") ->  | I7: =IF(ISNA(VLOOKUP(E7,SortLookup!$A$1:$B$5,2,FALSE))," ",VLOOKUP(E7,SortLookup!$A$1:$B$5,2,FALSE)) -> 1 | J7: =IF(ISNA(VLOOKUP(F7,SortLookup!$A$7:$B$11,2,FALSE))," ",VLOOKUP(F7,SortLookup!$A$7:$B$11,2,FALSE)) -> 2 | K7: 87.88 | L7: 82.88 | M7: 0 | N7: 5 | O7: 10 | P7: 26.86 | W7: 1 | AB7: 26.86 | AC7: 0.5 | AD7: 0 | AE7: 27.36 | AF7: 11.77 | AJ7: 2 | AO7: 11.77 | AP7: 1 | AQ7: 0 | AR7: 12.77 | AS7: 23.96 | AV7: 5 | BA7: 23.96 | BB7: 2.5 | BC7: 0 | BD7: 26.46 | BE7: 20.29 | BH7: 2 | BM7: 20.29 | BN7: 1 | BO7: 0 | BP7: 21.29 | BY7: 0 | BZ7: 0 | CA7: 0 | CB7: 0 | CJ7: 0 | CK7: 0 | CL7: 0 | CM7: 0 | CU7: 0 | CV7: 0 | CW7: 0 | CX7: 0 | DF7: 0 | DG7: 0 | DH7: 0 | DI7: 0
A8: 6 | B8: Brandon Williams | E8: ESP | F8: UN | H8: =IF(AND($H$2="Y",J8>0,OR(AND(G8=1,G17=10),AND(G8=2,G26=20),AND(G8=3,G35=30),AND(G8=4,G44=40),AND(G8=5,G53=50),AND(G8=6,G62=60),AND(G8=7,G71=70),AND(G8=8,G80=80),AND(G8=9,G89=90),AND(G8=10,G98=100))),VLOOKUP(J8-1,SortLookup!$A$13:$B$16,2,FALSE),"") ->  | I8: =IF(ISNA(VLOOKUP(E8,SortLookup!$A$1:$B$5,2,FALSE))," ",VLOOKUP(E8,SortLookup!$A$1:$B$5,2,FALSE)) -> 1 | J8: =IF(ISNA(VLOOKUP(F8,SortLookup!$A$7:$B$11,2,FALSE))," ",VLOOKUP(F8,SortLookup!$A$7:$B$11,2,FALSE)) ->  | K8: 163.44 | L8: 137.44 | M8: 5 | N8: 21 | O8: 42 | P8: 53.24 | W8: 7 | AB8: 53.24 | AC8: 3.5 | AD8: 0 | AE8: 56.74 | AF8: 15.74 | AJ8: 2 | AO8: 15.74 | AP8: 1 | AQ8: 0 | AR8: 16.74 | AS8: 39.25 | AV8: 24 | BA8: 39.25 | BB8: 12 | BC8: 0 | BD8: 51.25 | BE8: 29.21 | BH8: 9 | BK8: 1 | BM8: 29.21 | BN8: 4.5 | BO8: 5 | BP8: 38.71 | BY8: 0 | BZ8: 0 | CA8: 0 | CB8: 0 | CJ8: 0 | CK8: 0 | CL8: 0 | CM8: 0 | CU8: 0 | CV8: 0 | CW8: 0 | CX8: 0 | DF8: 0 | DG8: 0 | DH8: 0 | DI8: 0
A9: 7 | B9: John Connacher | E9: ESP | F9: NV | H9: =IF(AND($H$2="Y",J9>0,OR(AND(G9=1,G18=10),AND(G9=2,G27=20),AND(G9=3,G36=30),AND(G9=4,G45=40),AND(G9=5,G54=50),AND(G9=6,G63=60),AND(G9=7,G72=70),AND(G9=8,G81=80),AND(G9=9,G90=90),AND(G9=10,G99=100))),VLOOKUP(J9-1,SortLookup!$A$13:$B$16,2,FALSE),"") ->  | I9: =IF(ISNA(VLOOKUP(E9,SortLookup!$A$1:$B$5,2,FALSE))," ",VLOOKUP(E9,SortLookup!$A$1:$B$5,2,FALSE)) -> 1 | J9: =IF(ISNA(VLOOKUP(F9,SortLookup!$A$7:$B$11,2,FALSE))," ",VLOOKUP(F9,SortLookup!$A$7:$B$11,2,FALSE)) -> 4 | K9: 187.57 | L9: 163.57 | M9: 10 | N9: 14 | O9: 28 | P9: 55.75 | W9: 8 | AB9: 55.75 | AC9: 4 | AD9: 0 | AE9: 59.75 | AF9: 20.9 | AJ9: 1 | AO9: 20.9 | AP9: 0.5 | AQ9: 0 | AR9: 21.4 | AS9: 54.69 | AV9: 17 | BA9: 54.69 | BB9: 8.5 | BC9: 0 | BD9: 63.19 | BE9: 32.23 | BH9: 2 | BK9: 2 | BM9: 32.23 | BN9: 1 | BO9: 10 | BP9: 43.23 | BY9: 0 | BZ9: 0 | CA9: 0 | CB9: 0 | CJ9: 0 | CK9: 0 | CL9: 0 | CM9: 0 | CU9: 0 | CV9: 0 | CW9: 0 | CX9: 0 | DF9: 0 | DG9: 0 | DH9: 0 | DI9: 0
A10: 8 | B10: Jim Shipley | E10: ESP | F10: UN | H10: =IF(AND($H$2="Y",J10>0,OR(AND(G10=1,G19=10),AND(G10=2,G28=20),AND(G10=3,G37=30),AND(G10=4,G46=40),AND(G10=5,G55=50),AND(G10=6,G64=60),AND(G10=7,G73=70),AND(G10=8,G82=80),AND(G10=9,G91=90),AND(G10=10,G100=100))),VLOOKUP(J10-1,SortLookup!$A$13:$B$16,2,FALSE),"") ->  | I10: =IF(ISNA(VLOOKUP(E10,SortLookup!$A$1:$B$5,2,FALSE))," ",VLOOKUP(E10,SortLookup!$A$1:$B$5,2,FALSE)) -> 1 | J10: =IF(ISNA(VLOOKUP(F10,SortLookup!$A$7:$B$11,2,FALSE))," ",VLOOKUP(F10,SortLookup!$A$7:$B$11,2,FALSE)) ->  | K10: 90.89 | L10: 70.39 | M10: 8 | N10: 12.5 | O10: 25 | P10: 22.49 | W10: 6 | X10: 1 | AB10: 22.49 | AC10: 3 | AD10: 3 | AE10: 28.49 | AF10: 9.06 | AJ10: 5 | AO10: 9.06 | AP10: 2.5 | AQ10: 0 | AR10: 11.56 | AS10: 22.76 | AV10: 3 | BA10: 22.76 | BB10: 1.5 | BC10: 0 | BD10: 24.26 | BE10: 16.08 | BH10: 11 | BJ10: 1 | BM10: 16.08 | BN10: 5.5 | BO10: 5 | BP10: 26.58 | BY10: 0 | BZ10: 0 | CA10: 0 | CB10: 0 | CJ10: 0 | CK10: 0 | CL10: 0 | CM10: 0 | CU10: 0 | CV10: 0 | CW10: 0 | CX10: 0 | DF10: 0 | DG10: 0 | DH10: 0 | DI10: 0
A11: 9 | B11: Austin Steele | E11: ESP | F11: UN | H11: =IF(AND($H$2="Y",J11>0,OR(AND(G11=1,G20=10),AND(G11=2,G29=20),AND(G11=3,G38=30),AND(G11=4,G47=40),AND(G11=5,G56=50),AND(G11=6,G65=60),AND(G11=7,G74=70),AND(G11=8,G83=80),AND(G11=9,G92=90),AND(G11=10,G101=100))),VLOOKUP(J11-1,SortLookup!$A$13:$B$16,2,FALSE),"") ->  | I11: =IF(ISNA(VLOOKUP(E11,SortLookup!$A$1:$B$5,2,FALSE))," ",VLOOKUP(E11,SortLookup!$A$1:$B$5,2,FALSE)) -> 1 | J11: =IF(ISNA(VLOOKUP(F11,SortLookup!$A$7:$B$11,2,FALSE))," ",VLOOKUP(F11,SortLookup!$A$7:$B$11,2,FALSE)) ->  | K11: 115.99 | L11: 70.99 | M11: 13 | N11: 32 | O11: 64 | P11: 25.6 | W11: 23 | X11: 1 | AB11: 25.6 | AC11: 11.5 | AD11: 3 | AE11: 40.1 | AF11: 7.94 | AJ11: 5 | AO11: 7.94 | AP11: 2.5 | AQ11: 0 | AR11: 10.44 | AS11: 19.63 | AV11: 18 | BA11: 19.63 | BB11: 9 | BC11: 0 | BD11: 28.63 | BE11: 17.82 | BH11: 18 | BJ11: 1 | BK11: 1 | BM11: 17.82 | BN11: 9 | BO11: 10 | BP11: 36.82 | BY11: 0 | BZ11: 0 | CA11: 0 | CB11: 0 | CJ11: 0 | CK11: 0 | CL11: 0 | CM11: 0 | CU11: 0 | CV11: 0 | CW11: 0 | CX11: 0 | DF11: 0 | DG11: 0 | DH11: 0 | DI11: 0
A12: 10 | B12: Chris Kline | E12: ESP | F12: UN | H12: =IF(AND($H$2="Y",J12>0,OR(AND(G12=1,G21=10),AND(G12=2,G30=20),AND(G12=3,G39=30),AND(G12=4,G48=40),AND(G12=5,G57=50),AND(G12=6,G66=60),AND(G12=7,G75=70),AND(G12=8,G84=80),AND(G12=9,G93=90),AND(G12=10,G102=100))),VLOOKUP(J12-1,SortLookup!$A$13:$B$16,2,FALSE),"") ->  | I12: =IF(ISNA(VLOOKUP(E12,SortLookup!$A$1:$B$5,2,FALSE))," ",VLOOKUP(E12,SortLookup!$A$1:$B$5,2,FALSE)) -> 1 | J12: =IF(ISNA(VLOOKUP(F12,SortLookup!$A$7:$B$11,2,FALSE))," ",VLOOKUP(F12,SortLookup!$A$7:$B$11,2,FALSE)) ->  | K12: 110.69 | L12: 91.19 | M12: 8 | N12: 11.5 | O12: 23 | P12: 29.33 | W12: 5 | AB12: 29.33 | AC12: 2.5 | AD12: 0 | AE12: 31.83 | AF12: 11.35 | AJ12: 1 | AO12: 11.35 | AP12: 0.5 | AQ12: 0 | AR12: 11.85 | AS12: 31.24 | AV12: 12 | AW12: 1 | BA12: 31.24 | BB12: 6 | BC12: 3 | BD12: 40.24 | BE12: 19.27 | BH12: 5 | BK12: 1 | BM12: 19.27 | BN12: 2.5 | BO12: 5 | BP12: 26.77 | BY12: 0 | BZ12: 0 | CA12: 0 | CB12: 0 | CJ12: 0 | CK12: 0 | CL12: 0 | CM12: 0 | CU12: 0 | CV12: 0 | CW12: 0 | CX12: 0 | DF12: 0 | DG12: 0 | DH12: 0 | DI12: 0
A13: 11 | B13: Wayne Steele | E13: ESP | F13: UN | H13: =IF(AND($H$2="Y",J13>0,OR(AND(G13=1,G22=10),AND(G13=2,G31=20),AND(G13=3,G40=30),AND(G13=4,G49=40),AND(G13=5,G58=50),AND(G13=6,G67=60),AND(G13=7,G76=70),AND(G13=8,G85=80),AND(G13=9,G94=90),AND(G13=10,G103=100))),VLOOKUP(J13-1,SortLookup!$A$13:$B$16,2,FALSE),"") ->  | I13: =IF(ISNA(VLOOKUP(E13,SortLookup!$A$1:$B$5,2,FALSE))," ",VLOOKUP(E13,SortLookup!$A$1:$B$5,2,FALSE)) -> 1 | J13: =IF(ISNA(VLOOKUP(F13,SortLookup!$A$7:$B$11,2,FALSE))," ",VLOOKUP(F13,SortLookup!$A$7:$B$11,2,FALSE)) ->  | M13: 3 | N13: 5.5 | O13: 11 | P13: 24.04 | W13: 3 | X13: 1 | AB13: 24.04 | AC13: 1.5 | AD13: 3 | AE13: 28.54 | AF13: 7.91 | AJ13: 1 | AO13: 7.91 | AP13: 0.5 | AQ13: 0 | AR13: 8.41 | AS13: 20.57 | AV13: 7 | BA13: 20.57 | BB13: 3.5 | BC13: 0 | BD13: 24.07 | BE13: DNF | BN13: 0 | BO13: 0 | BY13: 0 | BZ13: 0 | CA13: 0 | CB13: 0 | CJ13: 0 | CK13: 0 | CL13: 0 | CM13: 0 | CU13: 0 | CV13: 0 | CW13: 0 | CX13: 0 | DF13: 0 | DG13: 0 | DH13: 0 | DI13: 0
A14: 12 | B14: Bob (FTR) Rogan | E14: ESP | F14: UN | H14: =IF(AND($H$2="Y",J14>0,OR(AND(G14=1,G23=10),AND(G14=2,G32=20),AND(G14=3,G41=30),AND(G14=4,G50=40),AND(G14=5,G59=50),AND(G14=6,G68=60),AND(G14=7,G77=70),AND(G14=8,G86=80),AND(G14=9,G95=90),AND(G14=10,G104=100))),VLOOKUP(J14-1,SortLookup!$A$13:$B$16,2,FALSE),"") ->  | I14: =IF(ISNA(VLOOKUP(E14,SortLookup!$A$1:$B$5,2,FALSE))," ",VLOOKUP(E14,SortLookup!$A$1:$B$5,2,FALSE)) -> 1 | J14: =IF(ISNA(VLOOKUP(F14,SortLookup!$A$7:$B$11,2,FALSE))," ",VLOOKUP(F14,SortLookup!$A$7:$B$11,2,FALSE)) ->  | K14: 102.87 | L14: 90.37 | M14: 0 | N14: 12.5 | O14: 25 | P14: 30.28 | W14: 9 | AB14: 30.28 | AC14: 4.5 | AD14: 0 | AE14: 34.78 | AF14: 11.54 | AJ14: 3 | AO14: 11.54 | AP14: 1.5 | AQ14: 0 | AR14: 13.04 | AS14: 27.34 | AV14: 4 | BA14: 27.34 | BB14: 2 | BC14: 0 | BD14: 29.34 | BE14: 21.21 | BH14: 9 | BM14: 21.21 | BN14: 4.5 | BO14: 0 | BP14: 25.71 | BY14: 0 | BZ14: 0 | CA14: 0 | CB14: 0 | CJ14: 0 | CK14: 0 | CL14: 0 | CM14: 0 | CU14: 0 | CV14: 0 | CW14: 0 | CX14: 0 | DF14: 0 | DG14: 0 | DH14: 0 | DI14: 0
A15: 13 | H15: =IF(AND($H$2="Y",J15>0,OR(AND(G15=1,G24=10),AND(G15=2,G33=20),AND(G15=3,G42=30),AND(G15=4,G51=40),AND(G15=5,G60=50),AND(G15=6,G69=60),AND(G15=7,G78=70),AND(G15=8,G87=80),AND(G15=9,G96=90),AND(G15=10,G105=100))),VLOOKUP(J15-1,SortLookup!$A$13:$B$16,2,FALSE),"") ->  | I15: =IF(ISNA(VLOOKUP(E15,SortLookup!$A$1:$B$5,2,FALSE))," ",VLOOKUP(E15,SortLookup!$A$1:$B$5,2,FALSE)) ->  | J15: =IF(ISNA(VLOOKUP(F15,SortLookup!$A$7:$B$11,2,FALSE))," ",VLOOKUP(F15,SortLookup!$A$7:$B$11,2,FALSE)) ->  | K15: 0 | L15: 0 | M15: 0 | N15: 0 | O15: 0 | AB15: 0 | AC15: 0 | AD15: 0 | AE15: 0 | AO15: 0 | AP15: 0 | AQ15: 0 | AR15: 0 | BA15: 0 | BB15: 0 | BC15: 0 | BD15: 0 | BM15: 0 | BN15: 0 | BO15: 0 | BP15: 0 | BY15: 0 | BZ15: 0 | CA15: 0 | CB15: 0 | CJ15: 0 | CK15: 0 | CL15: 0 | CM15: 0 | CU15: 0 | CV15: 0 | CW15: 0 | CX15: 0 | DF15: 0 | DG15: 0 | DH15: 0 | DI15: 0
A16: 14 | H16: =IF(AND($H$2="Y",J16>0,OR(AND(G16=1,G25=10),AND(G16=2,G34=20),AND(G16=3,G43=30),AND(G16=4,G52=40),AND(G16=5,G61=50),AND(G16=6,G70=60),AND(G16=7,G79=70),AND(G16=8,G88=80),AND(G16=9,G97=90),AND(G16=10,G106=100))),VLOOKUP(J16-1,SortLookup!$A$13:$B$16,2,FALSE),"") ->  | I16: =IF(ISNA(VLOOKUP(E16,SortLookup!$A$1:$B$5,2,FALSE))," ",VLOOKUP(E16,SortLookup!$A$1:$B$5,2,FALSE)) ->  | J16: =IF(ISNA(VLOOKUP(F16,SortLookup!$A$7:$B$11,2,FALSE))," ",VLOOKUP(F16,SortLookup!$A$7:$B$11,2,FALSE)) ->  | K16: 0 | L16: 0 | M16: 0 | N16: 0 | O16: 0 | AB16: 0 | AC16: 0 | AD16: 0 | AE16: 0 | AO16: 0 | AP16: 0 | AQ16: 0 | AR16: 0 | BA16: 0 | BB16: 0 | BC16: 0 | BD16: 0 | BM16: 0 | BN16: 0 | BO16: 0 | BP16: 0 | BY16: 0 | BZ16: 0 | CA16: 0 | CB16: 0 | CJ16: 0 | CK16: 0 | CL16: 0 | CM16: 0 | CU16: 0 | CV16: 0 | CW16: 0 | CX16: 0 | DF16: 0 | DG16: 0 | DH16: 0 | DI16: 0
A17: 15 | B17: Bruce Wehler | E17: CDP | F17: UN | H17: =IF(AND($H$2="Y",J17>0,OR(AND(G17=1,G26=10),AND(G17=2,G35=20),AND(G17=3,G44=30),AND(G17=4,G53=40),AND(G17=5,G62=50),AND(G17=6,G71=60),AND(G17=7,G80=70),AND(G17=8,G89=80),AND(G17=9,G98=90),AND(G17=10,G107=100))),VLOOKUP(J17-1,SortLookup!$A$13:$B$16,2,FALSE),"") ->  | I17: =IF(ISNA(VLOOKUP(E17,SortLookup!$A$1:$B$5,2,FALSE))," ",VLOOKUP(E17,SortLookup!$A$1:$B$5,2,FALSE)) -> 2 | J17: =IF(ISNA(VLOOKUP(F17,SortLookup!$A$7:$B$11,2,FALSE))," ",VLOOKUP(F17,SortLookup!$A$7:$B$11,2,FALSE)) ->  | K17: 126.19 | L17: 98.19 | M17: 5 | N17: 23 | O17: 46 | P17: 31.01 | W17: 9 | AB17: 31.01 | AC17: 4.5 | AD17: 0 | AE17: 35.51 | AF17: 10.61 | AJ17: 5 | AO17: 10.61 | AP17: 2.5 | AQ17: 0 | AR17: 13.11 | AS17: 32.12 | AV17: 18 | BA17: 32.12 | BB17: 9 | BC17: 0 | BD17: 41.12 | BE17: 24.45 | BH17: 14 | BJ17: 1 | BM17: 24.45 | BN17: 7 | BO17: 5 | BP17: 36.45 | BY17: 0 | BZ17: 0 | CA17: 0 | CB17: 0 | CJ17: 0 | CK17: 0 | CL17: 0 | CM17: 0 | CU17: 0 | CV17: 0 | CW17: 0 | CX17: 0 | DF17: 0 | DG17: 0 | DH17: 0 | DI17: 0
A18: 16 | B18: Duane Schmader | E18: CDP | F18: UN | H18: =IF(AND($H$2="Y",J18>0,OR(AND(G18=1,G27=10),AND(G18=2,G36=20),AND(G18=3,G45=30),AND(G18=4,G54=40),AND(G18=5,G63=50),AND(G18=6,G72=60),AND(G18=7,G81=70),AND(G18=8,G90=80),AND(G18=9,G99=90),AND(G18=10,G108=100))),VLOOKUP(J18-1,SortLookup!$A$13:$B$16,2,FALSE),"") ->  | I18: =IF(ISNA(VLOOKUP(E18,SortLookup!$A$1:$B$5,2,FALSE))," ",VLOOKUP(E18,SortLookup!$A$1:$B$5,2,FALSE)) -> 2 | J18: =IF(ISNA(VLOOKUP(F18,SortLookup!$A$7:$B$11,2,FALSE))," ",VLOOKUP(F18,SortLookup!$A$7:$B$11,2,FALSE)) ->  | K18: 165.24 | L18: 130.24 | M18: 15 | N18: 20 | O18: 40 | P18: 43.16 | W18: 2 | AB18: 43.16 | AC18: 1 | AD18: 0 | AE18: 44.16 | AF18: 13.13 | AJ18: 11 | AL18: 1 | AO18: 13.13 | AP18: 5.5 | AQ18: 5 | AR18: 23.63 | AS18: 45.05 | AV18: 12 | BA18: 45.05 | BB18: 6 | BC18: 0 | BD18: 51.05 | BE18: 28.9 | BH18: 15 | BJ18: 1 | BK18: 1 | BM18: 28.9 | BN18: 7.5 | BO18: 10 | BP18: 46.4 | BY18: 0 | BZ18: 0 | CA18: 0 | CB18: 0 | CJ18: 0 | CK18: 0 | CL18: 0 | CM18: 0 | CU18: 0 | CV18: 0 | CW18: 0 | CX18: 0 | DF18: 0 | DG18: 0 | DH18: 0 | DI18: 0
A19: 17 | B19: Joe Wortman | E19: CDP | F19: MM | H19: =IF(AND($H$2="Y",J19>0,OR(AND(G19=1,G28=10),AND(G19=2,G37=20),AND(G19=3,G46=30),AND(G19=4,G55=40),AND(G19=5,G64=50),AND(G19=6,G73=60),AND(G19=7,G82=70),AND(G19=8,G91=80),AND(G19=9,G100=90),AND(G19=10,G109=100))),VLOOKUP(J19-1,SortLookup!$A$13:$B$16,2,FALSE),"") ->  | I19: =IF(ISNA(VLOOKUP(E19,SortLookup!$A$1:$B$5,2,FALSE))," ",VLOOKUP(E19,SortLookup!$A$1:$B$5,2,FALSE)) -> 2 | J19: =IF(ISNA(VLOOKUP(F19,SortLookup!$A$7:$B$11,2,FALSE))," ",VLOOKUP(F19,SortLookup!$A$7:$B$11,2,FALSE)) -> 3 | K19: 98.57 | L19: 91.07 | M19: 0 | N19: 7.5 | O19: 15 | P19: 27.52 | W19: 1 | AB19: 27.52 | AC19: 0.5 | AD19: 0 | AE19: 28.02 | AF19: 9.09 | AJ19: 0 | AO19: 9.09 | AP19: 0 | AQ19: 0 | AR19: 9.09 | AS19: 29.33 | AV19: 13 | BA19: 29.33 | BB19: 6.5 | BC19: 0 | BD19: 35.83 | BE19: 25.13 | BH19: 1 | BM19: 25.13 | BN19: 0.5 | BO19: 0 | BP19: 25.63 | BY19: 0 | BZ19: 0 | CA19: 0 | CB19: 0 | CJ19: 0 | CK19: 0 | CL19: 0 | CM19: 0 | CU19: 0 | CV19: 0 | CW19: 0 | CX19: 0 | DF19: 0 | DG19: 0 | DH19: 0 | DI19: 0
A20: 18 | B20: Ed Novak | E20: CDP | F20: NV | H20: =IF(AND($H$2="Y",J20>0,OR(AND(G20=1,G29=10),AND(G20=2,G38=20),AND(G20=3,G47=30),AND(G20=4,G56=40),AND(G20=5,G65=50),AND(G20=6,G74=60),AND(G20=7,G83=70),AND(G20=8,G92=80),AND(G20=9,G101=90),AND(G20=10,G110=100))),VLOOKUP(J20-1,SortLookup!$A$13:$B$16,2,FALSE),"") ->  | I20: =IF(ISNA(VLOOKUP(E20,SortLookup!$A$1:$B$5,2,FALSE))," ",VLOOKUP(E20,SortLookup!$A$1:$B$5,2,FALSE)) -> 2 | J20: =IF(ISNA(VLOOKUP(F20,SortLookup!$A$7:$B$11,2,FALSE))," ",VLOOKUP(F20,SortLookup!$A$7:$B$11,2,FALSE)) -> 4 | K20: 152.44 | L20: 125.94 | M20: 9 | N20: 17.5 | O20: 35 | P20: 44.54 | W20: 18 | X20: 2 | AB20: 44.54 | AC20: 9 | AD20: 6 | AE20: 59.54 | AF20: 7.02 | AJ20: 1 | AO20: 7.02 | AP20: 0.5 | AQ20: 0 | AR20: 7.52 | AS20: 40.29 | AV20: 3 | BA20: 40.29 | BB20: 1.5 | BC20: 0 | BD20: 41.79 | BE20: 34.09 | BH20: 13 | BI20: 1 | BM20: 34.09 | BN20: 6.5 | BO20: 3 | BP20: 43.59 | BY20: 0 | BZ20: 0 | CA20: 0 | CB20: 0 | CJ20: 0 | CK20: 0 | CL20: 0 | CM20: 0 | CU20: 0 | CV20: 0 | CW20: 0 | CX20: 0 | DF20: 0 | DG20: 0 | DH20: 0 | DI20: 0
A21: 19 | B21: Herb Barnickel | E21: CDP | F21: NV | H21: =IF(AND($H$2="Y",J21>0,OR(AND(G21=1,G30=10),AND(G21=2,G39=20),AND(G21=3,G48=30),AND(G21=4,G57=40),AND(G21=5,G66=50),AND(G21=6,G75=60),AND(G21=7,G84=70),AND(G21=8,G93=80),AND(G21=9,G102=90),AND(G21=10,G111=100))),VLOOKUP(J21-1,SortLookup!$A$13:$B$16,2,FALSE),"") ->  | I21: =IF(ISNA(VLOOKUP(E21,SortLookup!$A$1:$B$5,2,FALSE))," ",VLOOKUP(E21,SortLookup!$A$1:$B$5,2,FALSE)) -> 2 | J21: =IF(ISNA(VLOOKUP(F21,SortLookup!$A$7:$B$11,2,FALSE))," ",VLOOKUP(F21,SortLookup!$A$7:$B$11,2,FALSE)) -> 4 | K21: 168.82 | L21: 164.32 | M21: 3 | N21: 1.5 | O21: 3 | P21: 59.01 | W21: 0 | AB21: 59.01 | AC21: 0 | AD21: 0 | AE21: 59.01 | AF21: 15.3 | AJ21: 0 | AK21: 1 | AO21: 15.3 | AP21: 0 | AQ21: 3 | AR21: 18.3 | AS21: 53.24 | AV21: 1 | BA21: 53.24 | BB21: 0.5 | BC21: 0 | BD21: 53.74 | BE21: 36.77 | BH21: 2 | BM21: 36.77 | BN21: 1 | BO21: 0 | BP21: 37.77 | BY21: 0 | BZ21: 0 | CA21: 0 | CB21: 0 | CJ21: 0 | CK21: 0 | CL21: 0 | CM21: 0 | CU21: 0 | CV21: 0 | CW21: 0 | CX21: 0 | DF21: 0 | DG21: 0 | DH21: 0 | DI21: 0
A22: 20 | B22: Roger Decker | E22: CDP | F22: NV | H22: =IF(AND($H$2="Y",J22>0,OR(AND(G22=1,G31=10),AND(G22=2,G40=20),AND(G22=3,G49=30),AND(G22=4,G58=40),AND(G22=5,G67=50),AND(G22=6,G76=60),AND(G22=7,G85=70),AND(G22=8,G94=80),AND(G22=9,G103=90),AND(G22=10,G112=100))),VLOOKUP(J22-1,SortLookup!$A$13:$B$16,2,FALSE),"") ->  | I22: =IF(ISNA(VLOOKUP(E22,SortLookup!$A$1:$B$5,2,FALSE))," ",VLOOKUP(E22,SortLookup!$A$1:$B$5,2,FALSE)) -> 2 | J22: =IF(ISNA(VLOOKUP(F22,SortLookup!$A$7:$B$11,2,FALSE))," ",VLOOKUP(F22,SortLookup!$A$7:$B$11,2,FALSE)) -> 4 | K22: 176.28 | L22: 163.28 | M22: 0 | N22: 13 | O22: 26 | P22: 39.76 | W22: 4 | AB22: 39.76 | AC22: 2 | AD22: 0 | AE22: 41.76 | AF22: 28.97 | AJ22: 1 | AO22: 28.97 | AP22: 0.5 | AQ22: 0 | AR22: 29.47 | AS22: 62.67 | AV22: 12 | BA22: 62.67 | BB22: 6 | BC22: 0 | BD22: 68.67 | BE22: 31.88 | BH22: 9 | BM22: 31.88 | BN22: 4.5 | BO22: 0 | BP22: 36.38 | BY22: 0 | BZ22: 0 | CA22: 0 | CB22: 0 | CJ22: 0 | CK22: 0 | CL22: 0 | CM22: 0 | CU22: 0 | CV22: 0 | CW22: 0 | CX22: 0 | DF22: 0 | DG22: 0 | DH22: 0 | DI22: 0
A23: 21 | B23: Jim Maletto | E23: CDP | F23: SS | H23: =IF(AND($H$2="Y",J23>0,OR(AND(G23=1,G32=10),AND(G23=2,G41=20),AND(G23=3,G50=30),AND(G23=4,G59=40),AND(G23=5,G68=50),AND(G23=6,G77=60),AND(G23=7,G86=70),AND(G23=8,G95=80),AND(G23=9,G104=90),AND(G23=10,G113=100))),VLOOKUP(J23-1,SortLookup!$A$13:$B$16,2,FALSE),"") ->  | I23: =IF(ISNA(VLOOKUP(E23,SortLookup!$A$1:$B$5,2,FALSE))," ",VLOOKUP(E23,SortLookup!$A$1:$B$5,2,FALSE)) -> 2 | J23: =IF(ISNA(VLOOKUP(F23,SortLookup!$A$7:$B$11,2,FALSE))," ",VLOOKUP(F23,SortLookup!$A$7:$B$11,2,FALSE)) -> 2 | K23: 92.57 | L23: 81.57 | M23: 0 | N23: 11 | O23: 22 | P23: 27.16 | W23: 4 | AB23: 27.16 | AC23: 2 | AD23: 0 | AE23: 29.16 | AF23: 8.9 | AJ23: 1 | AO23: 8.9 | AP23: 0.5 | AQ23: 0 | AR23: 9.4 | AS23: 21.69 | AV23: 14 | BA23: 21.69 | BB23: 7 | BC23: 0 | BD23: 28.69 | BE23: 23.82 | BH23: 3 | BM23: 23.82 | BN23: 1.5 | BO23: 0 | BP23: 25.32 | BY23: 0 | BZ23: 0 | CA23: 0 | CB23: 0 | CJ23: 0 | CK23: 0 | CL23: 0 | CM23: 0 | CU23: 0 | CV23: 0 | CW23: 0 | CX23: 0 | DF23: 0 | DG23: 0 | DH23: 0 | DI23: 0
A24: 22 | B24: Daren Mensch | E24: CDP | F24: UN | H24: =IF(AND($H$2="Y",J24>0,OR(AND(G24=1,G33=10),AND(G24=2,G42=20),AND(G24=3,G51=30),AND(G24=4,G60=40),AND(G24=5,G69=50),AND(G24=6,G78=60),AND(G24=7,G87=70),AND(G24=8,G96=80),AND(G24=9,G105=90),AND(G24=10,G114=100))),VLOOKUP(J24-1,SortLookup!$A$13:$B$16,2,FALSE),"") ->  | I24: =IF(ISNA(VLOOKUP(E24,SortLookup!$A$1:$B$5,2,FALSE))," ",VLOOKUP(E24,SortLookup!$A$1:$B$5,2,FALSE)) -> 2 | J24: =IF(ISNA(VLOOKUP(F24,SortLookup!$A$7:$B$11,2,FALSE))," ",VLOOKUP(F24,SortLookup!$A$7:$B$11,2,FALSE)) ->  | K24: 99.16 | L24: 93.66 | M24: 0 | N24: 5.5 | O24: 11 | P24: 35.82 | W24: 3 | AB24: 35.82 | AC24: 1.5 | AD24: 0 | AE24: 37.32 | AF24: 10.77 | AJ24: 0 | AO24: 10.77 | AP24: 0 | AQ24: 0 | AR24: 10.77 | AS24: 28.61 | AV24: 6 | BA24: 28.61 | BB24: 3 | BC24: 0 | BD24: 31.61 | BE24: 18.46 | BH24: 2 | BM24: 18.46 | BN24: 1 | BO24: 0 | BP24: 19.46 | BY24: 0 | BZ24: 0 | CA24: 0 | CB24: 0 | CJ24: 0 | CK24: 0 | CL24: 0 | CM24: 0 | CU24: 0 | CV24: 0 | CW24: 0 | CX24: 0 | DF24: 0 | DG24: 0 | DH24: 0 | DI24: 0
A25: 23 | B25: Jared Shaffer | E25: CDP | F25: SS | H25: =IF(AND($H$2="Y",J25>0,OR(AND(G25=1,G34=10),AND(G25=2,G43=20),AND(G25=3,G52=30),AND(G25=4,G61=40),AND(G25=5,G70=50),AND(G25=6,G79=60),AND(G25=7,G88=70),AND(G25=8,G97=80),AND(G25=9,G106=90),AND(G25=10,G115=100))),VLOOKUP(J25-1,SortLookup!$A$13:$B$16,2,FALSE),"") ->  | I25: =IF(ISNA(VLOOKUP(E25,SortLookup!$A$1:$B$5,2,FALSE))," ",VLOOKUP(E25,SortLookup!$A$1:$B$5,2,FALSE)) -> 2 | J25: =IF(ISNA(VLOOKUP(F25,SortLookup!$A$7:$B$11,2,FALSE))," ",VLOOKUP(F25,SortLookup!$A$7:$B$11,2,FALSE)) -> 2 | K25: 72.1 | L25: 67.6 | M25: 0 | N25: 4.5 | O25: 9 | P25: 19.91 | W25: 3 | AB25: 19.91 | AC25: 1.5 | AD25: 0 | AE25: 21.41 | AF25: 6.66 | AJ25: 2 | AO25: 6.66 | AP25: 1 | AQ25: 0 | AR25: 7.66 | AS25: 22.57 | AV25: 2 | BA25: 22.57 | BB25: 1 | BC25: 0 | BD25: 23.57 | BE25: 18.46 | BH25: 2 | BM25: 18.46 | BN25: 1 | BO25: 0 | BP25: 19.46 | BY25: 0 | BZ25: 0 | CA25: 0 | CB25: 0 | CJ25: 0 | CK25: 0 | CL25: 0 | CM25: 0 | CU25: 0 | CV25: 0 | CW25: 0 | CX25: 0 | DF25: 0 | DG25: 0 | DH25: 0 | DI25: 0
A26: 24 | B26: Mike (1 arm) Newell | E26: CDP | F26: SS | H26: =IF(AND($H$2="Y",J26>0,OR(AND(G26=1,G35=10),AND(G26=2,G44=20),AND(G26=3,G53=30),AND(G26=4,G62=40),AND(G26=5,G71=50),AND(G26=6,G80=60),AND(G26=7,G89=70),AND(G26=8,G98=80),AND(G26=9,G107=90),AND(G26=10,G116=100))),VLOOKUP(J26-1,SortLookup!$A$13:$B$16,2,FALSE),"") ->  | I26: =IF(ISNA(VLOOKUP(E26,SortLookup!$A$1:$B$5,2,FALSE))," ",VLOOKUP(E26,SortLookup!$A$1:$B$5,2,FALSE)) -> 2 | J26: =IF(ISNA(VLOOKUP(F26,SortLookup!$A$7:$B$11,2,FALSE))," ",VLOOKUP(F26,SortLookup!$A$7:$B$11,2,FALSE)) -> 2 | K26: 89.58 | L26: 80.08 | M26: 3 | N26: 6.5 | O26: 13 | P26: 27.4 | W26: 4 | AB26: 27.4 | AC26: 2 | AD26: 0 | AE26: 29.4 | AF26: 8.98 | AJ26: 1 | AO26: 8.98 | AP26: 0.5 | AQ26: 0 | AR26: 9.48 | AS26: 24.07 | AV26: 6 | BA26: 24.07 | BB26: 3 | BC26: 0 | BD26: 27.07 | BE26: 19.63 | BH26: 2 | BI26: 1 | BM26: 19.63 | BN26: 1 | BO26: 3 | BP26: 23.63 | BY26: 0 | BZ26: 0 | CA26: 0 | CB26: 0 | CJ26: 0 | CK26: 0 | CL26: 0 | CM26: 0 | CU26: 0 | CV26: 0 | CW26: 0 | CX26: 0 | DF26: 0 | DG26: 0 | DH26: 0 | DI26: 0
A27: 25 | B27: Darell Duttry | E27: CDP | F27: SS | H27: =IF(AND($H$2="Y",J27>0,OR(AND(G27=1,G36=10),AND(G27=2,G45=20),AND(G27=3,G54=30),AND(G27=4,G63=40),AND(G27=5,G72=50),AND(G27=6,G81=60),AND(G27=7,G90=70),AND(G27=8,G99=80),AND(G27=9,G108=90),AND(G27=10,G117=100))),VLOOKUP(J27-1,SortLookup!$A$13:$B$16,2,FALSE),"") ->  | I27: =IF(ISNA(VLOOKUP(E27,SortLookup!$A$1:$B$5,2,FALSE))," ",VLOOKUP(E27,SortLookup!$A$1:$B$5,2,FALSE)) -> 2 | J27: =IF(ISNA(VLOOKUP(F27,SortLookup!$A$7:$B$11,2,FALSE))," ",VLOOKUP(F27,SortLookup!$A$7:$B$11,2,FALSE)) -> 2 | K27: 82.88 | L27: 70.88 | M27: 0 | N27: 12 | O27: 24 | P27: 20.2 | W27: 9 | AB27: 20.2 | AC27: 4.5 | AD27: 0 | AE27: 24.7 | AF27: 7.46 | AJ27: 2 | AO27: 7.46 | AP27: 1 | AQ27: 0 | AR27: 8.46 | AS27: 24.66 | AV27: 11 | BA27: 24.66 | BB27: 5.5 | BC27: 0 | BD27: 30.16 | BE27: 18.56 | BH27: 2 | BM27: 18.56 | BN27: 1 | BO27: 0 | BP27: 19.56 | BY27: 0 | BZ27: 0 | CA27: 0 | CB27: 0 | CJ27: 0 | CK27: 0 | CL27: 0 | CM27: 0 | CU27: 0 | CV27: 0 | CW27: 0 | CX27: 0 | DF27: 0 | DG27: 0 | DH27: 0 | DI27: 0
A28: 26 | B28: Rick Brecht | E28: CDP | F28: SS | H28: =IF(AND($H$2="Y",J28>0,OR(AND(G28=1,G37=10),AND(G28=2,G46=20),AND(G28=3,G55=30),AND(G28=4,G64=40),AND(G28=5,G73=50),AND(G28=6,G82=60),AND(G28=7,G91=70),AND(G28=8,G100=80),AND(G28=9,G109=90),AND(G28=10,G118=100))),VLOOKUP(J28-1,SortLookup!$A$13:$B$16,2,FALSE),"") ->  | I28: =IF(ISNA(VLOOKUP(E28,SortLookup!$A$1:$B$5,2,FALSE))," ",VLOOKUP(E28,SortLookup!$A$1:$B$5,2,FALSE)) -> 2 | J28: =IF(ISNA(VLOOKUP(F28,SortLookup!$A$7:$B$11,2,FALSE))," ",VLOOKUP(F28,SortLookup!$A$7:$B$11,2,FALSE)) -> 2 | K28: 79.29 | L28: 63.79 | M28: 5 | N28: 10.5 | O28: 21 | P28: 22.15 | W28: 6 | AB28: 22.15 | AC28: 3 | AD28: 0 | AE28: 25.15 | AF28: 5.97 | AJ28: 1 | AO28: 5.97 | AP28: 0.5 | AQ28: 0 | AR28: 6.47 | AS28: 19.9 | AV28: 13 | BA28: 19.9 | BB28: 6.5 | BC28: 0 | BD28: 26.4 | BE28: 15.77 | BH28: 1 | BK28: 1 | BM28: 15.77 | BN28: 0.5 | BO28: 5 | BP28: 21.27 | BY28: 0 | BZ28: 0 | CA28: 0 | CB28: 0 | CJ28: 0 | CK28: 0 | CL28: 0 | CM28: 0 | CU28: 0 | CV28: 0 | CW28: 0 | CX28: 0 | DF28: 0 | DG28: 0 | DH28: 0 | DI28: 0
A29: 27 | H29: =IF(AND($H$2="Y",J29>0,OR(AND(G29=1,G38=10),AND(G29=2,G47=20),AND(G29=3,G56=30),AND(G29=4,G65=40),AND(G29=5,G74=50),AND(G29=6,G83=60),AND(G29=7,G92=70),AND(G29=8,G101=80),AND(G29=9,G110=90),AND(G29=10,G119=100))),VLOOKUP(J29-1,SortLookup!$A$13:$B$16,2,FALSE),"") ->  | I29: =IF(ISNA(VLOOKUP(E29,SortLookup!$A$1:$B$5,2,FALSE))," ",VLOOKUP(E29,SortLookup!$A$1:$B$5,2,FALSE)) ->  | J29: =IF(ISNA(VLOOKUP(F29,SortLookup!$A$7:$B$11,2,FALSE))," ",VLOOKUP(F29,SortLookup!$A$7:$B$11,2,FALSE)) ->  | K29: 0 | L29: 0 | M29: 0 | N29: 0 | O29: 0 | AB29: 0 | AC29: 0 | AD29: 0 | AE29: 0 | AO29: 0 | AP29: 0 | AQ29: 0 | AR29: 0 | BA29: 0 | BB29: 0 | BC29: 0 | BD29: 0 | BM29: 0 | BN29: 0 | BO29: 0 | BP29: 0 | BY29: 0 | BZ29: 0 | CA29: 0 | CB29: 0 | CJ29: 0 | CK29: 0 | CL29: 0 | CM29: 0 | CU29: 0 | CV29: 0 | CW29: 0 | CX29: 0 | DF29: 0 | DG29: 0 | DH29: 0 | DI29: 0
A30: 28 | H30: =IF(AND($H$2="Y",J30>0,OR(AND(G30=1,G39=10),AND(G30=2,G48=20),AND(G30=3,G57=30),AND(G30=4,G66=40),AND(G30=5,G75=50),AND(G30=6,G84=60),AND(G30=7,G93=70),AND(G30=8,G102=80),AND(G30=9,G111=90),AND(G30=10,G120=100))),VLOOKUP(J30-1,SortLookup!$A$13:$B$16,2,FALSE),"") ->  | I30: =IF(ISNA(VLOOKUP(E30,SortLookup!$A$1:$B$5,2,FALSE))," ",VLOOKUP(E30,SortLookup!$A$1:$B$5,2,FALSE)) ->  | J30: =IF(ISNA(VLOOKUP(F30,SortLookup!$A$7:$B$11,2,FALSE))," ",VLOOKUP(F30,SortLookup!$A$7:$B$11,2,FALSE)) ->  | K30: 0 | L30: 0 | M30: 0 | N30: 0 | O30: 0 | AB30: 0 | AC30: 0 | AD30: 0 | AE30: 0 | AO30: 0 | AP30: 0 | AQ30: 0 | AR30: 0 | BA30: 0 | BB30: 0 | BC30: 0 | BD30: 0 | BM30: 0 | BN30: 0 | BO30: 0 | BP30: 0 | BY30: 0 | BZ30: 0 | CA30: 0 | CB30: 0 | CJ30: 0 | CK30: 0 | CL30: 0 | CM30: 0 | CU30: 0 | CV30: 0 | CW30: 0 | CX30: 0 | DF30: 0 | DG30: 0 | DH30: 0 | DI30: 0
A31: 29 | B31: Frankie Decker | E31: SSP | F31: MM | H31: =IF(AND($H$2="Y",J31>0,OR(AND(G31=1,G40=10),AND(G31=2,G49=20),AND(G31=3,G58=30),AND(G31=4,G67=40),AND(G31=5,G76=50),AND(G31=6,G85=60),AND(G31=7,G94=70),AND(G31=8,G103=80),AND(G31=9,G112=90),AND(G31=10,G121=100))),VLOOKUP(J31-1,SortLookup!$A$13:$B$16,2,FALSE),"") ->  | I31: =IF(ISNA(VLOOKUP(E31,SortLookup!$A$1:$B$5,2,FALSE))," ",VLOOKUP(E31,SortLookup!$A$1:$B$5,2,FALSE)) -> 0 | J31: =IF(ISNA(VLOOKUP(F31,SortLookup!$A$7:$B$11,2,FALSE))," ",VLOOKUP(F31,SortLookup!$A$7:$B$11,2,FALSE)) -> 3 | K31: 132.97 | L31: 121.97 | M31: 0 | N31: 11 | O31: 22 | P31: 41.34 | W31: 11 | AB31: 41.34 | AC31: 5.5 | AD31: 0 | AE31: 46.84 | AF31: 11.84 | AJ31: 0 | AO31: 11.84 | AP31: 0 | AQ31: 0 | AR31: 11.84 | AS31: 38.73 | AV31: 3 | BA31: 38.73 | BB31: 1.5 | BC31: 0 | BD31: 40.23 | BE31: 30.06 | BH31: 8 | BM31: 30.06 | BN31: 4 | BO31: 0 | BP31: 34.06 | BY31: 0 | BZ31: 0 | CA31: 0 | CB31: 0 | CJ31: 0 | CK31: 0 | CL31: 0 | CM31: 0 | CU31: 0 | CV31: 0 | CW31: 0 | CX31: 0 | DF31: 0 | DG31: 0 | DH31: 0 | DI31: 0
A32: 30 | B32: Bill Kraus | E32: SSP | F32: UN | H32: =IF(AND($H$2="Y",J32>0,OR(AND(G32=1,G41=10),AND(G32=2,G50=20),AND(G32=3,G59=30),AND(G32=4,G68=40),AND(G32=5,G77=50),AND(G32=6,G86=60),AND(G32=7,G95=70),AND(G32=8,G104=80),AND(G32=9,G113=90),AND(G32=10,G122=100))),VLOOKUP(J32-1,SortLookup!$A$13:$B$16,2,FALSE),"") ->  | I32: =IF(ISNA(VLOOKUP(E32,SortLookup!$A$1:$B$5,2,FALSE))," ",VLOOKUP(E32,SortLookup!$A$1:$B$5,2,FALSE)) -> 0 | J32: =IF(ISNA(VLOOKUP(F32,SortLookup!$A$7:$B$11,2,FALSE))," ",VLOOKUP(F32,SortLookup!$A$7:$B$11,2,FALSE)) ->  | K32: 203.34 | L32: 134.34 | M32: 25 | N32: 44 | O32: 88 | P32: 41.67 | W32: 4 | AB32: 41.67 | AC32: 2 | AD32: 0 | AE32: 43.67 | AF32: 19.12 | AJ32: 11 | AL32: 2 | AO32: 19.12 | AP32: 5.5 | AQ32: 10 | AR32: 34.62 | AS32: 43.46 | AV32: 52 | BA32: 43.46 | BB32: 26 | BC32: 0 | BD32: 69.46 | BE32: 30.09 | BH32: 21 | BJ32: 1 | BK32: 2 | BM32: 30.09 | BN32: 10.5 | BO32: 15 | BP32: 55.59 | BY32: 0 | BZ32: 0 | CA32: 0 | CB32: 0 | CJ32: 0 | CK32: 0 | CL32: 0 | CM32: 0 | CU32: 0 | CV32: 0 | CW32: 0 | CX32: 0 | DF32: 0 | DG32: 0 | DH32: 0 | DI32: 0
A33: 31 | B33: Brian Kraus | E33: SSP | F33: UN | H33: =IF(AND($H$2="Y",J33>0,OR(AND(G33=1,G42=10),AND(G33=2,G51=20),AND(G33=3,G60=30),AND(G33=4,G69=40),AND(G33=5,G78=50),AND(G33=6,G87=60),AND(G33=7,G96=70),AND(G33=8,G105=80),AND(G33=9,G114=90),AND(G33=10,G123=100))),VLOOKUP(J33-1,SortLookup!$A$13:$B$16,2,FALSE),"") ->  | I33: =IF(ISNA(VLOOKUP(E33,SortLookup!$A$1:$B$5,2,FALSE))," ",VLOOKUP(E33,SortLookup!$A$1:$B$5,2,FALSE)) -> 0 | J33: =IF(ISNA(VLOOKUP(F33,SortLookup!$A$7:$B$11,2,FALSE))," ",VLOOKUP(F33,SortLookup!$A$7:$B$11,2,FALSE)) ->  | K33: 133.01 | L33: 74.01 | M33: 20 | N33: 39 | O33: 78 | P33: 20.63 | W33: 12 | AB33: 20.63 | AC33: 6 | AD33: 0 | AE33: 26.63 | AF33: 16.32 | AJ33: 19 | AL33: 2 | AO33: 16.32 | AP33: 9.5 | AQ33: 10 | AR33: 35.82 | AS33: 19.07 | AV33: 27 | BA33: 19.07 | BB33: 13.5 | BC33: 0 | BD33: 32.57 | BE33: 17.99 | BH33: 20 | BJ33: 1 | BK33: 1 | BM33: 17.99 | BN33: 10 | BO33: 10 | BP33: 37.99 | BY33: 0 | BZ33: 0 | CA33: 0 | CB33: 0 | CJ33: 0 | CK33: 0 | CL33: 0 | CM33: 0 | CU33: 0 | CV33: 0 | CW33: 0 | CX33: 0 | DF33: 0 | DG33: 0 | DH33: 0 | DI33: 0
A34: 32 | B34: Bran Haines | E34: SSP | F34: UN | H34: =IF(AND($H$2="Y",J34>0,OR(AND(G34=1,G43=10),AND(G34=2,G52=20),AND(G34=3,G61=30),AND(G34=4,G70=40),AND(G34=5,G79=50),AND(G34=6,G88=60),AND(G34=7,G97=70),AND(G34=8,G106=80),AND(G34=9,G115=90),AND(G34=10,G124=100))),VLOOKUP(J34-1,SortLookup!$A$13:$B$16,2,FALSE),"") ->  | I34: =IF(ISNA(VLOOKUP(E34,SortLookup!$A$1:$B$5,2,FALSE))," ",VLOOKUP(E34,SortLookup!$A$1:$B$5,2,FALSE)) -> 0 | J34: =IF(ISNA(VLOOKUP(F34,SortLookup!$A$7:$B$11,2,FALSE))," ",VLOOKUP(F34,SortLookup!$A$7:$B$11,2,FALSE)) ->  | K34: 133.63 | L34: 103.13 | M34: 8 | N34: 22.5 | O34: 45 | P34: 26.76 | W34: 11 | AB34: 26.76 | AC34: 5.5 | AD34: 0 | AE34: 32.26 | AF34: 9.88 | AJ34: 6 | AO34: 9.88 | AP34: 3 | AQ34: 0 | AR34: 12.88 | AS34: 34.04 | AV34: 26 | BA34: 34.04 | BB34: 13 | BC34: 0 | BD34: 47.04 | BE34: 32.45 | BH34: 2 | BI34: 1 | BK34: 1 | BM34: 32.45 | BN34: 1 | BO34: 8 | BP34: 41.45 | BY34: 0 | BZ34: 0 | CA34: 0 | CB34: 0 | CJ34: 0 | CK34: 0 | CL34: 0 | CM34: 0 | CU34: 0 | CV34: 0 | CW34: 0 | CX34: 0 | DF34: 0 | DG34: 0 | DH34: 0 | DI34: 0
A35: 33 | H35: =IF(AND($H$2="Y",J35>0,OR(AND(G35=1,G44=10),AND(G35=2,G53=20),AND(G35=3,G62=30),AND(G35=4,G71=40),AND(G35=5,G80=50),AND(G35=6,G89=60),AND(G35=7,G98=70),AND(G35=8,G107=80),AND(G35=9,G116=90),AND(G35=10,G125=100))),VLOOKUP(J35-1,SortLookup!$A$13:$B$16,2,FALSE),"") ->  | I35: =IF(ISNA(VLOOKUP(E35,SortLookup!$A$1:$B$5,2,FALSE))," ",VLOOKUP(E35,SortLookup!$A$1:$B$5,2,FALSE)) ->  | J35: =IF(ISNA(VLOOKUP(F35,SortLookup!$A$7:$B$11,2,FALSE))," ",VLOOKUP(F35,SortLookup!$A$7:$B$11,2,FALSE)) ->  | K35: =L35+M35+N35 -> 0 | L35: =AB35+AO35+BA35+BM35+BY35+CJ35+CU35+DF35 -> 0 | M35: =AD35+AQ35+BC35+BO35+CA35+CL35+CW35+DH35 -> 0 | N35: =O35/2 -> 0 | O35: =W35+AJ35+AV35+BH35+BT35+CE35+CP35+DA35 -> 0 | AB35: =P35+Q35+R35+S35+T35+U35+V35 -> 0 | AC35: =W35/2 -> 0 | AD35: =(X35*3)+(Y35*5)+(Z35*5)+(AA35*20) -> 0 | AE35: 0 | AO35: =AF35+AG35+AH35+AI35 -> 0 | AP35: =AJ35/2 -> 0 | AQ35: =(AK35*3)+(AL35*5)+(AM35*5)+(AN35*20) -> 0 | AR35: 0 | BA35: =AS35+AT35+AU35 -> 0 | BB35: =AV35/2 -> 0 | BC35: =(AW35*3)+(AX35*5)+(AY35*5)+(AZ35*20) -> 0 | BD35: 0 | BM35: =BE35+BF35+BG35 -> 0 | BN35: =BH35/2 -> 0 | BO35: =(BI35*3)+(BJ35*5)+(BK35*5)+(BL35*20) -> 0 | BP35: 0 | BY35: =BQ35+BR35+BS35 -> 0 | BZ35: =BT35/2 -> 0 | CA35: =(BU35*3)+(BV35*5)+(BW35*5)+(BX35*20) -> 0 | CB35: 0 | CJ35: =CC35+CD35 -> 0 | CK35: =CE35/2 -> 0 | CL35: =(CF35*3)+(CG35*5)+(CH35*5)+(CI35*20) -> 0 | CM35: 0 | CU35: =CN35+CO35 -> 0 | CV35: =CP35/2 -> 0 | CW35: =(CQ35*3)+(CR35*5)+(CS35*5)+(CT35*20) -> 0 | CX35: 0 | DF35: =CY35+CZ35 -> 0 | DG35: =DA35/2 -> 0 | DH35: =(DB35*3)+(DC35*5)+(DD35*5)+(DE35*20) -> 0 | DI35: 0
A36: 34 | H36: =IF(AND($H$2="Y",J36>0,OR(AND(G36=1,G45=10),AND(G36=2,G54=20),AND(G36=3,G63=30),AND(G36=4,G72=40),AND(G36=5,G81=50),AND(G36=6,G90=60),AND(G36=7,G99=70),AND(G36=8,G108=80),AND(G36=9,G117=90),AND(G36=10,G126=100))),VLOOKUP(J36-1,SortLookup!$A$13:$B$16,2,FALSE),"") ->  | I36: =IF(ISNA(VLOOKUP(E36,SortLookup!$A$1:$B$5,2,FALSE))," ",VLOOKUP(E36,SortLookup!$A$1:$B$5,2,FALSE)) ->  | J36: =IF(ISNA(VLOOKUP(F36,SortLookup!$A$7:$B$11,2,FALSE))," ",VLOOKUP(F36,SortLookup!$A$7:$B$11,2,FALSE)) ->  | K36: 0 | L36: 0 | M36: 0 | N36: 0 | O36: 0 | AB36: 0 | AC36: 0 | AD36: 0 | AE36: 0 | AO36: 0 | AP36: 0 | AQ36: 0 | AR36: 0 | BA36: 0 | BB36: 0 | BC36: 0 | BD36: 0 | BM36: 0 | BN36: 0 | BO36: 0 | BP36: 0 | BY36: 0 | BZ36: 0 | CA36: 0 | CB36: 0 | CJ36: 0 | CK36: 0 | CL36: 0 | CM36: 0 | CU36: 0 | CV36: 0 | CW36: 0 | CX36: 0 | DF36: 0 | DG36: 0 | DH36: 0 | DI36: 0
A37: 35 | B37: Adam Ginther | E37: SSR | F37: MM | H37: =IF(AND($H$2="Y",J37>0,OR(AND(G37=1,G46=10),AND(G37=2,G55=20),AND(G37=3,G64=30),AND(G37=4,G73=40),AND(G37=5,G82=50),AND(G37=6,G91=60),AND(G37=7,G100=70),AND(G37=8,G109=80),AND(G37=9,G118=90),AND(G37=10,G127=100))),VLOOKUP(J37-1,SortLookup!$A$13:$B$16,2,FALSE),"") ->  | I37: =IF(ISNA(VLOOKUP(E37,SortLookup!$A$1:$B$5,2,FALSE))," ",VLOOKUP(E37,SortLookup!$A$1:$B$5,2,FALSE)) -> 4 | J37: =IF(ISNA(VLOOKUP(F37,SortLookup!$A$7:$B$11,2,FALSE))," ",VLOOKUP(F37,SortLookup!$A$7:$B$11,2,FALSE)) -> 3 | K37: 124.59 | L37: 110.09 | M37: 0 | N37: 14.5 | O37: 29 | P37: 38.76 | W37: 10 | AB37: 38.76 | AC37: 5 | AD37: 0 | AE37: 43.76 | AF37: 18.48 | AJ37: 0 | AO37: 18.48 | AP37: 0 | AQ37: 0 | AR37: 18.48 | AS37: 26.57 | AV37: 15 | BA37: 26.57 | BB37: 7.5 | BC37: 0 | BD37: 34.07 | BE37: 26.28 | BH37: 4 | BM37: 26.28 | BN37: 2 | BO37: 0 | BP37: 28.28 | BY37: 0 | BZ37: 0 | CA37: 0 | CB37: 0 | CJ37: 0 | CK37: 0 | CL37: 0 | CM37: 0 | CU37: 0 | CV37: 0 | CW37: 0 | CX37: 0 | DF37: 0 | DG37: 0 | DH37: 0 | DI37: 0
A38: 36 | B38: Chris Jovenitti | E38: SSR | F38: NV | H38: =IF(AND($H$2="Y",J38>0,OR(AND(G38=1,G47=10),AND(G38=2,G56=20),AND(G38=3,G65=30),AND(G38=4,G74=40),AND(G38=5,G83=50),AND(G38=6,G92=60),AND(G38=7,G101=70),AND(G38=8,G110=80),AND(G38=9,G119=90),AND(G38=10,G128=100))),VLOOKUP(J38-1,SortLookup!$A$13:$B$16,2,FALSE),"") ->  | I38: =IF(ISNA(VLOOKUP(E38,SortLookup!$A$1:$B$5,2,FALSE))," ",VLOOKUP(E38,SortLookup!$A$1:$B$5,2,FALSE)) -> 4 | J38: =IF(ISNA(VLOOKUP(F38,SortLookup!$A$7:$B$11,2,FALSE))," ",VLOOKUP(F38,SortLookup!$A$7:$B$11,2,FALSE)) -> 4 | K38: 279.98 | L38: 242.48 | M38: 5 | N38: 32.5 | O38: 65 | P38: 91.85 | W38: 23 | AB38: 91.85 | AC38: 11.5 | AD38: 0 | AE38: 103.35 | AF38: 33.72 | AJ38: 5 | AO38: 33.72 | AP38: 2.5 | AQ38: 0 | AR38: 36.22 | AS38: 62.86 | AV38: 20 | BA38: 62.86 | BB38: 10 | BC38: 0 | BD38: 72.86 | BE38: 54.05 | BH38: 17 | BJ38: 1 | BM38: 54.05 | BN38: 8.5 | BO38: 5 | BP38: 67.55 | BY38: 0 | BZ38: 0 | CA38: 0 | CB38: 0 | CJ38: 0 | CK38: 0 | CL38: 0 | CM38: 0 | CU38: 0 | CV38: 0 | CW38: 0 | CX38: 0 | DF38: 0 | DG38: 0 | DH38: 0 | DI38: 0
A39: 37 | H39: =IF(AND($H$2="Y",J39>0,OR(AND(G39=1,G48=10),AND(G39=2,G57=20),AND(G39=3,G66=30),AND(G39=4,G75=40),AND(G39=5,G84=50),AND(G39=6,G93=60),AND(G39=7,G102=70),AND(G39=8,G111=80),AND(G39=9,G120=90),AND(G39=10,G129=100))),VLOOKUP(J39-1,SortLookup!$A$13:$B$16,2,FALSE),"") ->  | I39: =IF(ISNA(VLOOKUP(E39,SortLookup!$A$1:$B$5,2,FALSE))," ",VLOOKUP(E39,SortLookup!$A$1:$B$5,2,FALSE)) ->  | J39: =IF(ISNA(VLOOKUP(F39,SortLookup!$A$7:$B$11,2,FALSE))," ",VLOOKUP(F39,SortLookup!$A$7:$B$11,2,FALSE)) ->  | K39: 0 | L39: 0 | M39: 0 | N39: 0 | O39: 0 | AB39: 0 | AC39: 0 | AD39: 0 | AE39: 0 | AO39: 0 | AP39: 0 | AQ39: 0 | AR39: 0 | BA39: 0 | BB39: 0 | BC39: 0 | BD39: 0 | BM39: 0 | BN39: 0 | BO39: 0 | BP39: 0 | BY39: 0 | BZ39: 0 | CA39: 0 | CB39: 0 | CJ39: 0 | CK39: 0 | CL39: 0 | CM39: 0 | CU39: 0 | CV39: 0 | CW39: 0 | CX39: 0 | DF39: 0 | DG39: 0 | DH39: 0 | DI39: 0
A40: 38 | H40: =IF(AND($H$2="Y",J40>0,OR(AND(G40=1,G49=10),AND(G40=2,G58=20),AND(G40=3,G67=30),AND(G40=4,G76=40),AND(G40=5,G85=50),AND(G40=6,G94=60),AND(G40=7,G103=70),AND(G40=8,G112=80),AND(G40=9,G121=90),AND(G40=10,G130=100))),VLOOKUP(J40-1,SortLookup!$A$13:$B$16,2,FALSE),"") ->  | I40: =IF(ISNA(VLOOKUP(E40,SortLookup!$A$1:$B$5,2,FALSE))," ",VLOOKUP(E40,SortLookup!$A$1:$B$5,2,FALSE)) ->  | J40: =IF(ISNA(VLOOKUP(F40,SortLookup!$A$7:$B$11,2,FALSE))," ",VLOOKUP(F40,SortLookup!$A$7:$B$11,2,FALSE)) ->  | K40: 0 | L40: 0 | M40: 0 | N40: 0 | O40: 0 | AB40: 0 | AC40: 0 | AD40: 0 | AE40: 0 | AO40: 0 | AP40: 0 | AQ40: 0 | AR40: 0 | BA40: 0 | BB40: 0 | BC40: 0 | BD40: 0 | BM40: 0 | BN40: 0 | BO40: 0 | BP40: 0 | BY40: 0 | BZ40: 0 | CA40: 0 | CB40: 0 | CJ40: 0 | CK40: 0 | CL40: 0 | CM40: 0 | CU40: 0 | CV40: 0 | CW40: 0 | CX40: 0 | DF40: 0 | DG40: 0 | DH40: 0 | DI40: 0
A41: 39 | H41: =IF(AND($H$2="Y",J41>0,OR(AND(G41=1,G50=10),AND(G41=2,G59=20),AND(G41=3,G68=30),AND(G41=4,G77=40),AND(G41=5,G86=50),AND(G41=6,G95=60),AND(G41=7,G104=70),AND(G41=8,G113=80),AND(G41=9,G122=90),AND(G41=10,G131=100))),VLOOKUP(J41-1,SortLookup!$A$13:$B$16,2,FALSE),"") ->  | I41: =IF(ISNA(VLOOKUP(E41,SortLookup!$A$1:$B$5,2,FALSE))," ",VLOOKUP(E41,SortLookup!$A$1:$B$5,2,FALSE)) ->  | J41: =IF(ISNA(VLOOKUP(F41,SortLookup!$A$7:$B$11,2,FALSE))," ",VLOOKUP(F41,SortLookup!$A$7:$B$11,2,FALSE)) ->  | K41: 0 | L41: 0 | M41: 0 | N41: 0 | O41: 0 | AB41: 0 | AC41: 0 | AD41: 0 | AE41: 0 | AO41: 0 | AP41: 0 | AQ41: 0 | AR41: 0 | BA41: 0 | BB41: 0 | BC41: 0 | BD41: 0 | BM41: 0 | BN41: 0 | BO41: 0 | BP41: 0 | BY41: 0 | BZ41: 0 | CA41: 0 | CB41: 0 | CJ41: 0 | CK41: 0 | CL41: 0 | CM41: 0 | CU41: 0 | CV41: 0 | CW41: 0 | CX41: 0 | DF41: 0 | DG41: 0 | DH41: 0 | DI41: 0
A42: 40 | H42: =IF(AND($H$2="Y",J42>0,OR(AND(G42=1,G51=10),AND(G42=2,G60=20),AND(G42=3,G69=30),AND(G42=4,G78=40),AND(G42=5,G87=50),AND(G42=6,G96=60),AND(G42=7,G105=70),AND(G42=8,G114=80),AND(G42=9,G123=90),AND(G42=10,G132=100))),VLOOKUP(J42-1,SortLookup!$A$13:$B$16,2,FALSE),"") ->  | I42: =IF(ISNA(VLOOKUP(E42,SortLookup!$A$1:$B$5,2,FALSE))," ",VLOOKUP(E42,SortLookup!$A$1:$B$5,2,FALSE)) ->  | J42: =IF(ISNA(VLOOKUP(F42,SortLookup!$A$7:$B$11,2,FALSE))," ",VLOOKUP(F42,SortLookup!$A$7:$B$11,2,FALSE)) ->  | K42: 0 | L42: 0 | M42: 0 | N42: 0 | O42: 0 | AB42: 0 | AC42: 0 | AD42: 0 | AE42: 0 | AO42: 0 | AP42: 0 | AQ42: 0 | AR42: 0 | BA42: 0 | BB42: 0 | BC42: 0 | BD42: 0 | BM42: 0 | BN42: 0 | BO42: 0 | BP42: 0 | BY42: 0 | BZ42: 0 | CA42: 0 | CB42: 0 | CJ42: 0 | CK42: 0 | CL42: 0 | CM42: 0 | CU42: 0 | CV42: 0 | CW42: 0 | CX42: 0 | DF42: 0 | DG42: 0 | DH42: 0 | DI42: 0
A43: 41 | H43: =IF(AND($H$2="Y",J43>0,OR(AND(G43=1,G52=10),AND(G43=2,G61=20),AND(G43=3,G70=30),AND(G43=4,G79=40),AND(G43=5,G88=50),AND(G43=6,G97=60),AND(G43=7,G106=70),AND(G43=8,G115=80),AND(G43=9,G124=90),AND(G43=10,G133=100))),VLOOKUP(J43-1,SortLookup!$A$13:$B$16,2,FALSE),"") ->  | I43: =IF(ISNA(VLOOKUP(E43,SortLookup!$A$1:$B$5,2,FALSE))," ",VLOOKUP(E43,SortLookup!$A$1:$B$5,2,FALSE)) ->  | J43: =IF(ISNA(VLOOKUP(F43,SortLookup!$A$7:$B$11,2,FALSE))," ",VLOOKUP(F43,SortLookup!$A$7:$B$11,2,FALSE)) ->  | K43: 0 | L43: 0 | M43: 0 | N43: 0 | O43: 0 | AB43: 0 | AC43: 0 | AD43: 0 | AE43: 0 | AO43: 0 | AP43: 0 | AQ43: 0 | AR43: 0 | BA43: 0 | BB43: 0 | BC43: 0 | BD43: 0 | BM43: 0 | BN43: 0 | BO43: 0 | BP43: 0 | BY43: 0 | BZ43: 0 | CA43: 0 | CB43: 0 | CJ43: 0 | CK43: 0 | CL43: 0 | CM43: 0 | CU43: 0 | CV43: 0 | CW43: 0 | CX43: 0 | DF43: 0 | DG43: 0 | DH43: 0 | DI43: 0
A44: 42 | H44: =IF(AND($H$2="Y",J44>0,OR(AND(G44=1,G53=10),AND(G44=2,G62=20),AND(G44=3,G71=30),AND(G44=4,G80=40),AND(G44=5,G89=50),AND(G44=6,G98=60),AND(G44=7,G107=70),AND(G44=8,G116=80),AND(G44=9,G125=90),AND(G44=10,G134=100))),VLOOKUP(J44-1,SortLookup!$A$13:$B$16,2,FALSE),"") ->  | I44: =IF(ISNA(VLOOKUP(E44,SortLookup!$A$1:$B$5,2,FALSE))," ",VLOOKUP(E44,SortLookup!$A$1:$B$5,2,FALSE)) ->  | J44: =IF(ISNA(VLOOKUP(F44,SortLookup!$A$7:$B$11,2,FALSE))," ",VLOOKUP(F44,SortLookup!$A$7:$B$11,2,FALSE)) ->  | K44: 0 | L44: 0 | M44: 0 | N44: 0 | O44: 0 | AB44: 0 | AC44: 0 | AD44: 0 | AE44: 0 | AO44: 0 | AP44: 0 | AQ44: 0 | AR44: 0 | BA44: 0 | BB44: 0 | BC44: 0 | BD44: 0 | BM44: 0 | BN44: 0 | BO44: 0 | BP44: 0 | BY44: 0 | BZ44: 0 | CA44: 0 | CB44: 0 | CJ44: 0 | CK44: 0 | CL44: 0 | CM44: 0 | CU44: 0 | CV44: 0 | CW44: 0 | CX44: 0 | DF44: 0 | DG44: 0 | DH44: 0 | DI44: 0
A45: 43 | H45: =IF(AND($H$2="Y",J45>0,OR(AND(G45=1,G54=10),AND(G45=2,G63=20),AND(G45=3,G72=30),AND(G45=4,G81=40),AND(G45=5,G90=50),AND(G45=6,G99=60),AND(G45=7,G108=70),AND(G45=8,G117=80),AND(G45=9,G126=90),AND(G45=10,G135=100))),VLOOKUP(J45-1,SortLookup!$A$13:$B$16,2,FALSE),"") ->  | I45: =IF(ISNA(VLOOKUP(E45,SortLookup!$A$1:$B$5,2,FALSE))," ",VLOOKUP(E45,SortLookup!$A$1:$B$5,2,FALSE)) ->  | J45: =IF(ISNA(VLOOKUP(F45,SortLookup!$A$7:$B$11,2,FALSE))," ",VLOOKUP(F45,SortLookup!$A$7:$B$11,2,FALSE)) ->  | K45: 0 | L45: 0 | M45: 0 | N45: 0 | O45: 0 | AB45: 0 | AC45: 0 | AD45: 0 | AE45: 0 | AO45: 0 | AP45: 0 | AQ45: 0 | AR45: 0 | BA45: 0 | BB45: 0 | BC45: 0 | BD45: 0 | BM45: 0 | BN45: 0 | BO45: 0 | BP45: 0 | BY45: 0 | BZ45: 0 | CA45: 0 | CB45: 0 | CJ45: 0 | CK45: 0 | CL45: 0 | CM45: 0 | CU45: 0 | CV45: 0 | CW45: 0 | CX45: 0 | DF45: 0 | DG45: 0 | DH45: 0 | DI45: 0
A46: 44 | H46: =IF(AND($H$2="Y",J46>0,OR(AND(G46=1,G55=10),AND(G46=2,G64=20),AND(G46=3,G73=30),AND(G46=4,G82=40),AND(G46=5,G91=50),AND(G46=6,G100=60),AND(G46=7,G109=70),AND(G46=8,G118=80),AND(G46=9,G127=90),AND(G46=10,G136=100))),VLOOKUP(J46-1,SortLookup!$A$13:$B$16,2,FALSE),"") ->  | I46: =IF(ISNA(VLOOKUP(E46,SortLookup!$A$1:$B$5,2,FALSE))," ",VLOOKUP(E46,SortLookup!$A$1:$B$5,2,FALSE)) ->  | J46: =IF(ISNA(VLOOKUP(F46,SortLookup!$A$7:$B$11,2,FALSE))," ",VLOOKUP(F46,SortLookup!$A$7:$B$11,2,FALSE)) ->  | K46: 0 | L46: 0 | M46: 0 | N46: 0 | O46: 0 | AB46: 0 | AC46: 0 | AD46: 0 | AE46: 0 | AO46: 0 | AP46: 0 | AQ46: 0 | AR46: 0 | BA46: 0 | BB46: 0 | BC46: 0 | BD46: 0 | BM46: 0 | BN46: 0 | BO46: 0 | BP46: 0 | BY46: 0 | BZ46: 0 | CA46: 0 | CB46: 0 | CJ46: 0 | CK46: 0 | CL46: 0 | CM46: 0 | CU46: 0 | CV46: 0 | CW46: 0 | CX46: 0 | DF46: 0 | DG46: 0 | DH46: 0 | DI46: 0
A47: 45 | H47: =IF(AND($H$2="Y",J47>0,OR(AND(G47=1,G56=10),AND(G47=2,G65=20),AND(G47=3,G74=30),AND(G47=4,G83=40),AND(G47=5,G92=50),AND(G47=6,G101=60),AND(G47=7,G110=70),AND(G47=8,G119=80),AND(G47=9,G128=90),AND(G47=10,G137=100))),VLOOKUP(J47-1,SortLookup!$A$13:$B$16,2,FALSE),"") ->  | I47: =IF(ISNA(VLOOKUP(E47,SortLookup!$A$1:$B$5,2,FALSE))," ",VLOOKUP(E47,SortLookup!$A$1:$B$5,2,FALSE)) ->  | J47: =IF(ISNA(VLOOKUP(F47,SortLookup!$A$7:$B$11,2,FALSE))," ",VLOOKUP(F47,SortLookup!$A$7:$B$11,2,FALSE)) ->  | K47: 0 | L47: 0 | M47: 0 | N47: 0 | O47: 0 | AB47: 0 | AC47: 0 | AD47: 0 | AE47: 0 | AO47: 0 | AP47: 0 | AQ47: 0 | AR47: 0 | BA47: 0 | BB47: 0 | BC47: 0 | BD47: 0 | BM47: 0 | BN47: 0 | BO47: 0 | BP47: 0 | BY47: 0 | BZ47: 0 | CA47: 0 | CB47: 0 | CJ47: 0 | CK47: 0 | CL47: 0 | CM47: 0 | CU47: 0 | CV47: 0 | CW47: 0 | CX47: 0 | DF47: 0 | DG47: 0 | DH47: 0 | DI47: 0
A48: 46 | H48: =IF(AND($H$2="Y",J48>0,OR(AND(G48=1,G57=10),AND(G48=2,G66=20),AND(G48=3,G75=30),AND(G48=4,G84=40),AND(G48=5,G93=50),AND(G48=6,G102=60),AND(G48=7,G111=70),AND(G48=8,G120=80),AND(G48=9,G129=90),AND(G48=10,G138=100))),VLOOKUP(J48-1,SortLookup!$A$13:$B$16,2,FALSE),"") ->  | I48: =IF(ISNA(VLOOKUP(E48,SortLookup!$A$1:$B$5,2,FALSE))," ",VLOOKUP(E48,SortLookup!$A$1:$B$5,2,FALSE)) ->  | J48: =IF(ISNA(VLOOKUP(F48,SortLookup!$A$7:$B$11,2,FALSE))," ",VLOOKUP(F48,SortLookup!$A$7:$B$11,2,FALSE)) ->  | K48: 0 | L48: 0 | M48: 0 | N48: 0 | O48: 0 | AB48: 0 | AC48: 0 | AD48: 0 | AE48: 0 | AO48: 0 | AP48: 0 | AQ48: 0 | AR48: 0 | BA48: 0 | BB48: 0 | BC48: 0 | BD48: 0 | BM48: 0 | BN48: 0 | BO48: 0 | BP48: 0 | BY48: 0 | BZ48: 0 | CA48: 0 | CB48: 0 | CJ48: 0 | CK48: 0 | CL48: 0 | CM48: 0 | CU48: 0 | CV48: 0 | CW48: 0 | CX48: 0 | DF48: 0 | DG48: 0 | DH48: 0 | DI48: 0
A49: 47 | H49: =IF(AND($H$2="Y",J49>0,OR(AND(G49=1,G58=10),AND(G49=2,G67=20),AND(G49=3,G76=30),AND(G49=4,G85=40),AND(G49=5,G94=50),AND(G49=6,G103=60),AND(G49=7,G112=70),AND(G49=8,G121=80),AND(G49=9,G130=90),AND(G49=10,G139=100))),VLOOKUP(J49-1,SortLookup!$A$13:$B$16,2,FALSE),"") ->  | I49: =IF(ISNA(VLOOKUP(E49,SortLookup!$A$1:$B$5,2,FALSE))," ",VLOOKUP(E49,SortLookup!$A$1:$B$5,2,FALSE)) ->  | J49: =IF(ISNA(VLOOKUP(F49,SortLookup!$A$7:$B$11,2,FALSE))," ",VLOOKUP(F49,SortLookup!$A$7:$B$11,2,FALSE)) ->  | K49: 0 | L49: 0 | M49: 0 | N49: 0 | O49: 0 | AB49: 0 | AC49: 0 | AD49: 0 | AE49: 0 | AO49: 0 | AP49: 0 | AQ49: 0 | AR49: 0 | BA49: 0 | BB49: 0 | BC49: 0 | BD49: 0 | BM49: 0 | BN49: 0 | BO49: 0 | BP49: 0 | BY49: 0 | BZ49: 0 | CA49: 0 | CB49: 0 | CJ49: 0 | CK49: 0 | CL49: 0 | CM49: 0 | CU49: 0 | CV49: 0 | CW49: 0 | CX49: 0 | DF49: 0 | DG49: 0 | DH49: 0 | DI49: 0
A50: 48 | H50: =IF(AND($H$2="Y",J50>0,OR(AND(G50=1,G59=10),AND(G50=2,G68=20),AND(G50=3,G77=30),AND(G50=4,G86=40),AND(G50=5,G95=50),AND(G50=6,G104=60),AND(G50=7,G113=70),AND(G50=8,G122=80),AND(G50=9,G131=90),AND(G50=10,G140=100))),VLOOKUP(J50-1,SortLookup!$A$13:$B$16,2,FALSE),"") ->  | I50: =IF(ISNA(VLOOKUP(E50,SortLookup!$A$1:$B$5,2,FALSE))," ",VLOOKUP(E50,SortLookup!$A$1:$B$5,2,FALSE)) ->  | J50: =IF(ISNA(VLOOKUP(F50,SortLookup!$A$7:$B$11,2,FALSE))," ",VLOOKUP(F50,SortLookup!$A$7:$B$11,2,FALSE)) ->  | K50: 0 | L50: 0 | M50: 0 | N50: 0 | O50: 0 | AB50: 0 | AC50: 0 | AD50: 0 | AE50: 0 | AO50: 0 | AP50: 0 | AQ50: 0 | AR50: 0 | BA50: 0 | BB50: 0 | BC50: 0 | BD50: 0 | BM50: 0 | BN50: 0 | BO50: 0 | BP50: 0 | BY50: 0 | BZ50: 0 | CA50: 0 | CB50: 0 | CJ50: 0 | CK50: 0 | CL50: 0 | CM50: 0 | CU50: 0 | CV50: 0 | CW50: 0 | CX50: 0 | DF50: 0 | DG50: 0 | DH50: 0 | DI50: 0
A51: 49 | H51: =IF(AND($H$2="Y",J51>0,OR(AND(G51=1,G60=10),AND(G51=2,G69=20),AND(G51=3,G78=30),AND(G51=4,G87=40),AND(G51=5,G96=50),AND(G51=6,G105=60),AND(G51=7,G114=70),AND(G51=8,G123=80),AND(G51=9,G132=90),AND(G51=10,G141=100))),VLOOKUP(J51-1,SortLookup!$A$13:$B$16,2,FALSE),"") ->  | I51: =IF(ISNA(VLOOKUP(E51,SortLookup!$A$1:$B$5,2,FALSE))," ",VLOOKUP(E51,SortLookup!$A$1:$B$5,2,FALSE)) ->  | J51: =IF(ISNA(VLOOKUP(F51,SortLookup!$A$7:$B$11,2,FALSE))," ",VLOOKUP(F51,SortLookup!$A$7:$B$11,2,FALSE)) ->  | K51: 0 | L51: 0 | M51: 0 | N51: 0 | O51: 0 | AB51: 0 | AC51: 0 | AD51: 0 | AE51: 0 | AO51: 0 | AP51: 0 | AQ51: 0 | AR51: 0 | BA51: 0 | BB51: 0 | BC51: 0 | BD51: 0 | BM51: 0 | BN51: 0 | BO51: 0 | BP51: 0 | BY51: 0 | BZ51: 0 | CA51: 0 | CB51: 0 | CJ51: 0 | CK51: 0 | CL51: 0 | CM51: 0 | CU51: 0 | CV51: 0 | CW51: 0 | CX51: 0 | DF51: 0 | DG51: 0 | DH51: 0 | DI51: 0
A52: 50 | H52: =IF(AND($H$2="Y",J52>0,OR(AND(G52=1,G61=10),AND(G52=2,G70=20),AND(G52=3,G79=30),AND(G52=4,G88=40),AND(G52=5,G97=50),AND(G52=6,G106=60),AND(G52=7,G115=70),AND(G52=8,G124=80),AND(G52=9,G133=90),AND(G52=10,G142=100))),VLOOKUP(J52-1,SortLookup!$A$13:$B$16,2,FALSE),"") ->  | I52: =IF(ISNA(VLOOKUP(E52,SortLookup!$A$1:$B$5,2,FALSE))," ",VLOOKUP(E52,SortLookup!$A$1:$B$5,2,FALSE)) ->  | J52: =IF(ISNA(VLOOKUP(F52,SortLookup!$A$7:$B$11,2,FALSE))," ",VLOOKUP(F52,SortLookup!$A$7:$B$11,2,FALSE)) ->  | K52: 0 | L52: 0 | M52: 0 | N52: 0 | O52: 0 | AB52: 0 | AC52: 0 | AD52: 0 | AE52: 0 | AO52: 0 | AP52: 0 | AQ52: 0 | AR52: 0 | BA52: 0 | BB52: 0 | BC52: 0 | BD52: 0 | BM52: 0 | BN52: 0 | BO52: 0 | BP52: 0 | BY52: 0 | BZ52: 0 | CA52: 0 | CB52: 0 | CJ52: 0 | CK52: 0 | CL52: 0 | CM52: 0 | CU52: 0 | CV52: 0 | CW52: 0 | CX52: 0 | DF52: 0 | DG52: 0 | DH52: 0 | DI52: 0

Sheet SortLookup
A1: SSP | B1: 0 | C1: IDPA Match Scoring Spreadsheet Sort Key lookup table
A2: ESP | B2: 1 | C2: Table used to convert IDPA Divisions and classes into numeric sort keys.
A3: CDP | B3: 2 | C3: The sort keys can then be used with the total match scores to produce a sort by score within division and class.
A4: ESR | B4: 3 | C4: The shooter's division is looked up in the upper table and converted to anumber.
A5: SSR | B5: 4 | C5: Then his or her class is looked up in the lower table and converted to a number.
A7: MA | B7: 0 | C7: A three-column sort on the division sort key first, class sort key next, and total match score third will yield a properly-ordered report.
A8: EX | B8: 1
A9: SS | B9: 2
A10: MM | B10: 3
A11: NV | B11: 4
A13: 0 | B13: MA | C13: This table is used to look up IDPA Classes using the numeric Class Sort Key value for purposes of promotions at sanctioned matches.
A14: 1 | B14: EX
A15: 2 | B15: SS
A16: 3 | B16: MM
A17: 4 | C17: Invalid Shooter Class entered on spreadsheet!

Sheet Help
A1: Help and instructions for this spreadsheet are available on the CCIDPA web site at http://www.ccidpa.org/scoring/spreadsheets.html
A4: If you delete rows in the scoring spreadsheet, and column H "blows up" with #REF! errors, replace the formulas in column H:
A5: (Remember to add the equal sign at the beginning of this formula!)
A7: 1. Unprotect the scoring worksheet using Tools->Protection->Unprotect Sheet.
A8: 2. Select this Help worksheet, and copy the formula below.
A9: 3. Return to the scoring worksheet.
A10: 4. Paste the copied formula into cell H3, and add an equal sign to the beginning of it.
A11: 5. Left-click and select the cell at location H3.
A12: 6. Place the cursor on the little black box that appears at the bottom right of cell H3.
A13: 7. Press and hold the left mouse button, and drag the little black box all the way down to the last active row of your spreadsheet.
A14: 8. Re-protect the worksheet using Tools->Protection->Protect Sheet. Uncheck all boxes, except for "Select unlocked cells."
A16: IF(AND($H$2="Y",J3>0,OR(AND(G3=1,G12=10),AND(G3=2,G21=20),AND(G3=3,G30=30),AND(G3=4,G39=40),AND(G3=5,G48=50),AND(G3=6,G57=60),AND(G3=7,G66=70),AND(G3=8,G75=80),AND(G3=9,G84=90),AND(G3=10,G93=100))),VLOOKUP(J3-1,SortLookup!$A$12:$B$15,2,FALSE),"")
A19: The Match Ranking and Match Promotion features (columns G and H) won't work properly until you have sorted your results by Division, Class, and Total Match Score.
A22: Columns I and J (Sort Div and Sort Class) are provided to allow a quick, three-column sort for final match results.
A23: 1. Unprotect the scoring worksheet using Tools->Protection->Unprotect Sheet.
A24: 2. Select any cell in the spreadsheet.
A25: 3. Select Data->Sort
A26: 4. In the Sort By box, select Sort Div.
A27: 5. In the first Then By box, select Sort Class.
A28: 6. In the second Then By box, select Total Match Score.
A29: 7. In most cases, you will want to select Ascending order in all three radio buttons.
A30: 8. Click OK to sort your match results.
A31: 9. Re-protect the worksheet using Tools->Protection->Protect Sheet. Uncheck all boxes, except for "Select unlocked cells."
